fUSD/lending_fUSD_20250530
["ID","MTS","AMOUNT","RATE_DAILY","PERIOD"]
[363167604,1748607040985,-420.0,0.00021917,2]
[363167606,1748607040995,-722.7,0.00021917,2]
[363167608,1748607041004,-420.0,0.00021917,2]
[363167610,1748607041013,-734.25,0.00021917,2]
[363167612,1748607041023,-420.0,0.00021917,2]
[363167615,1748607041033,-635.18,0.00021917,2]
[363167616,1748607041042,-420.0,0.00021917,2]
[363167618,1748607041052,-420.0,0.00021917,2]
[363167620,1748607041061,-420.0,0.00021917,2]
[363167622,1748607041071,-420.0,0.00021917,2]
[363167624,1748607041080,-420.0,0.00021917,2]
[363167626,1748607041090,-554.74,0.00021917,2]
[363167628,1748607041101,-420.0,0.00021917,2]
[363167630,1748607041110,-611.52,0.00021917,2]
[363167632,1748607041119,-420.0,0.00021917,2]
[363167635,1748607041129,-420.0,0.00021917,2]
[363167636,1748607041138,-462.71,0.00021917,2]
[363167638,1748607041147,-420.0,0.00021917,2]
[363167640,1748607041160,-420.0,0.00021917,2]
[363167642,1748607041169,-420.0,0.00021917,2]
[363167644,1748607041178,-429.11,0.00021917,2]
[363167646,1748607041188,-420.0,0.00021917,2]
[363167648,1748607041197,-1188.93,0.00021917,2]
[363167650,1748607041207,-420.0,0.00021917,2]
[363167653,1748607041218,-891.62,0.00021917,2]
[363167655,1748607041227,-605.19,0.00021917,2]
[363167657,1748607041237,-542.57,0.00021917,2]
[363167659,1748607041247,-806.97,0.00021917,2]
[363167661,1748607041256,-915.09,0.00021917,2]
[363167663,1748607041265,-420.0,0.00021917,2]
[363167665,1748607041276,-420.0,0.00021917,2]
[363167667,1748607041285,-420.0,0.00021917,2]
[363167668,1748607041295,-561.74,0.00021917,2]
[363167670,1748607041304,-420.0,0.00021917,2]
[363167672,1748607041315,-420.0,0.00021917,2]
[363167674,1748607041325,-830.32,0.00021917,2]
[363167676,1748607041334,-420.0,0.00021917,2]
[363167678,1748607041343,-420.0,0.00021917,2]
[363167680,1748607041353,-490.85,0.00021917,2]
[363167682,1748607041363,-420.0,0.00021917,2]
[363167684,1748607041374,-420.0,0.00021917,2]
[363167687,1748607041384,-420.0,0.00021917,2]
[363167689,1748607041393,-1423.64,0.00021917,2]
[363167691,1748607041403,-420.0,0.00021917,2]
[363167693,1748607041416,-555.69,0.00021917,2]
[363167694,1748607041425,-420.0,0.00021917,2]
[363167697,1748607041435,-1024.44,0.00021917,2]
[363167698,1748607041445,-561.39,0.00021917,2]
[363167701,1748607041455,-1024.4,0.00021917,2]
[363167703,1748607041465,-828.95,0.00021917,2]
[363167705,1748607041475,-666.43,0.00021917,2]
[363167707,1748607041484,-420.0,0.00021917,2]
[363167709,1748607041494,-843.71,0.00021917,2]
[363167711,1748607041503,-86926.41,0.00021917,2]
[363167712,1748607041513,-705.97,0.00021917,2]
[363167715,1748607041523,-420.0,0.00021917,2]
[363167716,1748607041532,-420.0,0.00021917,2]
[363167718,1748607041542,-1845.55,0.00021917,2]
[363167721,1748607041552,-420.0,0.00021917,2]
[363167722,1748607041561,-444.53,0.00021917,2]
[363167724,1748607041570,-476.13,0.00021917,2]
[363167726,1748607041579,-420.0,0.00021917,2]
[363167729,1748607041590,-2157.65,0.00021917,2]
[363167730,1748607041599,-822.98,0.00021917,2]
[363167732,1748607041609,-1603.7,0.00021917,2]
[363167735,1748607041619,-420.0,0.00021917,2]
[363167737,1748607041628,-447.93,0.00021917,2]
[363167738,1748607041638,-420.0,0.00021917,2]
[363167740,1748607041652,-980.59,0.00021917,2]
[363167742,1748607041667,-420.0,0.00021917,2]
[363167744,1748607041677,-1723.19,0.00021917,2]
[363167746,1748607041688,-983.82,0.00021917,2]
[363167748,1748607041699,-511.09,0.00021917,2]
[363167750,1748607041709,-420.0,0.00021917,2]
[363167753,1748607041719,-420.0,0.00021917,2]
[363167754,1748607041731,-1122.49,0.00021917,2]
[363167756,1748607041742,-420.0,0.00021917,2]
[363167758,1748607041752,-2217.7,0.00021917,2]
[363167760,1748607041762,-420.0,0.00021917,2]
[363167762,1748607041772,-1063.81,0.00021917,2]
[363167764,1748607041783,-6717.82,0.00021917,2]
[363167767,1748607041794,-691.37,0.00021917,2]
[363167769,1748607041804,-1317.38,0.00021917,2]
[363167770,1748607041815,-1372.57,0.00021917,2]
[363167773,1748607041827,-420.0,0.00021917,2]
[363167775,1748607041837,-7535.87,0.00021917,2]
[363167777,1748607041847,-197.92731945,0.00021917,2]
[363167779,1748607041857,-2685.86,0.00021917,2]
[363167781,1748607041867,-2380.77,0.00021917,2]
[363167783,1748607041877,-420.0,0.00021917,2]
[363167785,1748607041887,-2507.78,0.00021917,2]
[363167787,1748607041896,-649.68,0.00021917,2]
[363167788,1748607041908,-5187.95,0.00021917,2]
[363167790,1748607041918,-2012.28,0.00021917,2]
[363167792,1748607041929,-425.32319039,0.00021917,2]
[363167794,1748607041939,-689.56,0.00021917,2]
[363167796,1748607041949,-927.66,0.00021917,2]
[363167798,1748607041959,-658.91,0.00021917,2]
[363167800,1748607041969,-3885.76,0.00021917,2]
[363167802,1748607041978,-603.91,0.00021917,2]
[363167805,1748607041988,-6681.81,0.00021917,2]
[363167807,1748607041998,-911.24,0.00021917,2]
[363167808,1748607042007,-932.04,0.00021917,2]
[363167809,1748607042017,-420.0,0.00021917,2]
[363167810,1748607042026,-492.89,0.00021917,2]
[363167811,1748607042036,-646.35,0.00021917,2]
[363167812,1748607042045,-1220.31,0.00021917,2]
[363167813,1748607042054,-939.98,0.00021917,2]
[363167814,1748607042065,-420.0,0.00021917,2]
[363167815,1748607042075,-420.0,0.00021917,2]
[363167816,1748607042084,-1108.35,0.00021917,2]
[363167817,1748607042094,-3430.82,0.00021917,2]
[363167818,1748607042104,-420.0,0.00021917,2]
[363167819,1748607042117,-9207.29,0.00021917,2]
[363167820,1748607042128,-420.0,0.00021917,2]
[363167821,1748607042138,-420.0,0.00021917,2]
[363167822,1748607042147,-2205.41,0.00021917,2]
[363167823,1748607042161,-575.48,0.00021917,2]
[363167825,1748607042171,-887.03,0.00021917,2]
[363167827,1748607042180,-420.0,0.00021917,2]
[363167829,1748607042190,-420.0,0.00021917,2]
[363167831,1748607042200,-420.0,0.00021917,2]
[363167833,1748607042209,-7187.75,0.00021917,2]
[363167835,1748607042219,-420.0,0.00021917,2]
[363167837,1748607042228,-737.14,0.00021917,2]
[363167839,1748607042238,-586.97,0.00021917,2]
[363167841,1748607042250,-420.0,0.00021917,2]
[363167843,1748607042259,-420.0,0.00021917,2]
[363167845,1748607042269,-720.56,0.00021917,2]
[363167847,1748607042278,-481.84,0.00021917,2]
[363167849,1748607042288,-420.0,0.00021917,2]
[363167852,1748607042298,-1809.99,0.00021917,2]
[363167854,1748607042308,-480.85,0.00021917,2]
[363167856,1748607042318,-2301.8,0.00021917,2]
[363167857,1748607042328,-1126.66,0.00021917,2]
[363167859,1748607042337,-420.0,0.00021917,2]
[363167861,1748607042347,-1133.39,0.00021917,2]
[363167863,1748607042357,-1016.52,0.00021917,2]
[363167866,1748607042366,-420.0,0.00021917,2]
[363167868,1748607042377,-420.0,0.00021917,2]
[363167870,1748607042388,-7056.8,0.00021917,2]
[363167872,1748607042398,-2797.49,0.00021917,2]
[363167873,1748607042410,-641.25,0.00021917,2]
[363167875,1748607042420,-568.14,0.00021917,2]
[363167878,1748607042431,-761.33,0.00021917,2]
[363167880,1748607042440,-420.0,0.00021917,2]
[363167882,1748607042450,-482.24,0.00021917,2]
[363167885,1748607042459,-420.0,0.00021917,2]
[363167888,1748607042469,-420.0,0.00021917,2]
[363167891,1748607042478,-458.08,0.00021917,2]
[363167894,1748607042488,-1729.68,0.00021917,2]
[363167897,1748607042497,-804.22,0.00021917,2]
[363167900,1748607042507,-420.0,0.00021917,2]
[363167903,1748607042516,-981.01,0.00021917,2]
[363167905,1748607042525,-665.18,0.00021917,2]
[363167909,1748607042535,-1614.28,0.00021917,2]
[363167911,1748607042545,-983.07,0.00021917,2]
[363167913,1748607042555,-873.87,0.00021917,2]
[363167916,1748607042564,-813.82,0.00021917,2]
[363167919,1748607042573,-4813.38,0.00021917,2]
[363167922,1748607042582,-420.0,0.00021917,2]
[363167924,1748607042592,-1632.65,0.00021917,2]
[363167927,1748607042602,-472.8,0.00021917,2]
[363167929,1748607042612,-420.0,0.00021917,2]
[363167953,1748607042798,-457.6,0.00021917,2]
[363167956,1748607042820,-5108.33,0.00021917,2]
[363167958,1748607042831,-2974.9,0.00021917,2]
[363167960,1748607042841,-613.72,0.00021917,2]
[363167962,1748607042851,-420.0,0.00021917,2]
[363167964,1748607042862,-778.71,0.00021917,2]
[363167966,1748607042873,-1922.14,0.00021917,2]
[363167968,1748607042883,-520.51236519,0.00021917,2]
[363167970,1748607042894,-2797.81,0.00021917,2]
[363167972,1748607042909,-892.25,0.00021917,2]
[363167974,1748607042919,-705.71,0.00021917,2]
[363167976,1748607042930,-1674.65,0.00021917,2]
[363167979,1748607042940,-1389.57,0.00021917,2]
[363167981,1748607042950,-684.93,0.00021917,2]
[363167983,1748607042960,-420.0,0.00021917,2]
[363167985,1748607042970,-1255.87,0.00021917,2]
[363167987,1748607042980,-2470.47,0.00021917,2]
[363167989,1748607042990,-420.0,0.00021917,2]
[363167991,1748607043000,-420.0,0.00021917,2]
[363167993,1748607043010,-420.0,0.00021917,2]
[363167995,1748607043019,-1338.59,0.00021917,2]
[363167997,1748607043029,-1182.57,0.00021917,2]
[363167999,1748607043039,-556.75,0.00021917,2]
[363168001,1748607043049,-420.0,0.00021917,2]
[363168002,1748607043058,-2489.28,0.00021917,2]
[363168005,1748607043068,-420.0,0.00021917,2]
[363168006,1748607043078,-420.0,0.00021917,2]
[363168009,1748607043089,-490.55,0.00021917,2]
[363168011,1748607043099,-2169.61,0.00021917,2]
[363168012,1748607043109,-718.83,0.00021917,2]
[363168015,1748607043119,-420.0,0.00021917,2]
[363168017,1748607043129,-420.0,0.00021917,2]
[363168018,1748607043138,-921.22,0.00021917,2]
[363168021,1748607043148,-2061.41,0.00021917,2]
[363168023,1748607043162,-420.0,0.00021917,2]
[363168024,1748607043171,-420.0,0.00021917,2]
[363168026,1748607043180,-3184.52,0.00021917,2]
[363168029,1748607043190,-789.16,0.00021917,2]
[363168030,1748607043200,-420.0,0.00021917,2]
[363168034,1748607043211,-423.48,0.00021917,2]
[363168035,1748607043221,-420.0,0.00021917,2]
[363168038,1748607043231,-2835.89,0.00021917,2]
[363168042,1748607043241,-420.0,0.00021917,2]
[363168044,1748607043252,-567.0,0.00021917,2]
[363168047,1748607043261,-2667.69,0.00021917,2]
[363168049,1748607043271,-1177.33,0.00021917,2]
[363168051,1748607043280,-420.0,0.00021917,2]
[363168053,1748607043291,-2466.9,0.00021917,2]
[363168055,1748607043300,-1946.37,0.00021917,2]
[363168057,1748607043310,-648.5,0.00021917,2]
[363168060,1748607043320,-1659.75,0.00021917,2]
[363168061,1748607043330,-678.29,0.00021917,2]
[363168064,1748607043342,-524.41,0.00021917,2]
[363168066,1748607043353,-733.52,0.00021917,2]
[363168068,1748607043363,-1782.45,0.00021917,2]
[363168070,1748607043373,-1513.35,0.00021917,2]
[363168072,1748607043383,-747.44,0.00021917,2]
[363168074,1748607043392,-445.41,0.00021917,2]
[363168076,1748607043402,-420.0,0.00021917,2]
[363168078,1748607043415,-693.81,0.00021917,2]
[363168080,1748607043425,-173.19316204,0.00021917,2]
[363168082,1748607043435,-925.56,0.00021917,2]
[363168084,1748607043445,-1866.18,0.00021917,2]
[363168086,1748607043456,-859.59,0.00021917,2]
[363168088,1748607043466,-524.76,0.00021917,2]
[363168090,1748607043476,-420.0,0.00021917,2]
[363168092,1748607043486,-420.0,0.00021917,2]
[363168094,1748607043496,-455.3,0.00021917,2]
[363168096,1748607043506,-7524.05,0.00021917,2]
[363168098,1748607043515,-420.0,0.00021917,2]
[363168100,1748607043525,-448.17,0.00021917,2]
[363168102,1748607043535,-478.5,0.00021917,2]
[363168104,1748607043544,-1100.99,0.00021917,2]
[363168106,1748607043554,-6055.27,0.00021917,2]
[363168108,1748607043565,-420.0,0.00021917,2]
[363168110,1748607043574,-937.48,0.00021917,2]
[363168112,1748607043585,-486.44990018,0.00021917,2]
[363168114,1748607043594,-564.55,0.00021917,2]
[363168116,1748607043604,-1109.15,0.00021917,2]
[363168118,1748607043614,-3354.03,0.00021917,2]
[363168120,1748607043623,-7876.53,0.00021917,2]
[363168122,1748607043633,-420.0,0.00021917,2]
[363168124,1748607043643,-428.1,0.00021917,2]
[363168127,1748607043660,-640.66,0.00021917,2]
[363168129,1748607043670,-420.0,0.00021917,2]
[363168131,1748607043679,-732.75,0.00021917,2]
[363168133,1748607043691,-628.09,0.00021917,2]
[363168135,1748607043700,-802.35,0.00021917,2]
[363168137,1748607043710,-420.0,0.00021917,2]
[363168139,1748607043719,-420.0,0.00021917,2]
[363168141,1748607043730,-4476.09,0.00021917,2]
[363168143,1748607043740,-420.0,0.00021917,2]
[363168146,1748607043750,-1010.4,0.00021917,2]
[363168149,1748607043760,-954.45,0.00021917,2]
[363168152,1748607043769,-830.92,0.00021917,2]
[363168154,1748607043780,-834.55,0.00021917,2]
[363168156,1748607043790,-1074.88,0.00021917,2]
[363168158,1748607043800,-533.45,0.00021917,2]
[363168160,1748607043809,-715.52,0.00021917,2]
[363168162,1748607043819,-659.25,0.00021917,2]
[363168164,1748607043829,-881.61,0.00021917,2]
[363168166,1748607043839,-420.0,0.00021917,2]
[363168168,1748607043849,-1646.34,0.00021917,2]
[363168170,1748607043858,-420.0,0.00021917,2]
[363168172,1748607043868,-5188.37,0.00021917,2]
[363168174,1748607043878,-420.0,0.00021917,2]
[363168176,1748607043887,-724.95,0.00021917,2]
[363168178,1748607043897,-420.0,0.00021917,2]
[363168180,1748607043907,-4441.46,0.00021917,2]
[363168182,1748607043917,-1045.74,0.00021917,2]
[363168184,1748607043926,-180.25751073,0.00021917,2]
[363168186,1748607043936,-420.0,0.00021917,2]
[363168188,1748607043946,-420.0,0.00021917,2]
[363168190,1748607043956,-3401.09,0.00021917,2]
[363168192,1748607043965,-1787.46,0.00021917,2]
[363168194,1748607043975,-821.68,0.00021917,2]
[363168196,1748607043985,-1393.87,0.00021917,2]
[363168198,1748607043995,-420.0,0.00021917,2]
[363168200,1748607044005,-631.21,0.00021917,2]
[363168202,1748607044014,-1135.27,0.00021917,2]
[363168204,1748607044024,-948.4,0.00021917,2]
[363168206,1748607044033,-620.79,0.00021917,2]
[363168208,1748607044043,-420.0,0.00021917,2]
[363168210,1748607044053,-874.48,0.00021917,2]
[363168212,1748607044063,-528.89,0.00021917,2]
[363168214,1748607044072,-420.0,0.00021917,2]
[363168216,1748607044082,-420.0,0.00021917,2]
[363168218,1748607044091,-536.57270066,0.00021918,2]
[363168220,1748607044102,-456.03546296,0.00021918,2]
[363168222,1748607044112,-366.10600662,0.00021953,2]
[363168224,1748607044121,-431.73927023,0.00022,2]
[363168226,1748607044131,-194.0,0.00022,5]
[363168228,1748607044140,-160.0,0.00022,2]
[363168230,1748607044150,-1155.0,0.00022009,2]
[363168232,1748607044163,-6929.0,0.00022009,2]
[363168234,1748607044173,-4068.0,0.00022009,2]
[363168236,1748607044183,-155.0,0.00022009,2]
[363168238,1748607044193,-882.0,0.00022009,2]
[363168240,1748607044202,-920.92,0.00022055,2]
[363168243,1748607044212,-175.47148246,0.00022091,2]
[363168245,1748607044222,-431.73927023,0.00022182,2]
[363168247,1748607044232,-480.91,0.00022191,2]
[363168249,1748607044242,-420.0,0.00022191,2]
[363168251,1748607044252,-420.0,0.00022191,2]
[363168253,1748607044262,-527.46,0.00022191,2]
[363168255,1748607044272,-420.0,0.00022191,2]
[363168257,1748607044282,-420.0,0.00022191,2]
[363168259,1748607044292,-420.0,0.00022191,2]
[363168261,1748607044302,-420.0,0.00022191,2]
[363168263,1748607044315,-420.0,0.00022191,2]
[363168265,1748607044325,-420.0,0.00022191,2]
[363168267,1748607044336,-424.96,0.00022191,2]
[363168269,1748607044346,-420.0,0.00022191,2]
[363168271,1748607044356,-420.0,0.00022191,2]
[363168273,1748607044367,-420.0,0.00022191,2]
[363168275,1748607044378,-718.13,0.00022191,2]
[363168277,1748607044387,-420.0,0.00022191,2]
[363168279,1748607044398,-420.0,0.00022191,2]
[363168281,1748607044413,-420.0,0.00022191,2]
[363168283,1748607044426,-420.0,0.00022191,2]
[363168286,1748607044437,-420.0,0.00022191,2]
[363168288,1748607044446,-866.18,0.00022191,2]
[363168289,1748607044455,-420.0,0.00022191,2]
[363168292,1748607044464,-420.0,0.00022191,2]
[363168294,1748607044474,-420.0,0.00022191,2]
[363168295,1748607044483,-420.0,0.00022191,2]
[363168297,1748607044492,-542.03,0.00022191,2]
[363168300,1748607044502,-420.0,0.00022191,2]
[363168302,1748607044512,-420.0,0.00022191,2]
[363168304,1748607044522,-420.0,0.00022191,2]
[363168306,1748607044533,-541.7,0.00022191,2]
[363168308,1748607044543,-420.0,0.00022191,2]
[363168310,1748607044553,-420.0,0.00022191,2]
[363168312,1748607044563,-420.0,0.00022191,2]
[363168313,1748607044576,-420.0,0.00022191,2]
[363168316,1748607044587,-420.0,0.00022191,2]
[363168317,1748607044597,-741.67,0.00022191,2]
[363168319,1748607044607,-420.0,0.00022191,2]
[363168321,1748607044617,-420.0,0.00022191,2]
[363168324,1748607044628,-420.0,0.00022191,2]
[363168326,1748607044638,-420.0,0.00022191,2]
[363168328,1748607044648,-1824.87,0.00022191,2]
[363168330,1748607044666,-420.0,0.00022191,2]
[363168332,1748607044679,-420.0,0.00022191,2]
[363168334,1748607044689,-350.25293178,0.00022191,2]
[363168336,1748607044699,-420.0,0.00022191,2]
[363168338,1748607044709,-420.0,0.00022191,2]
[363168340,1748607044719,-607.61,0.00022191,2]
[363168342,1748607044728,-420.0,0.00022191,2]
[363168343,1748607044738,-420.0,0.00022191,2]
[363168346,1748607044750,-420.0,0.00022191,2]
[363168348,1748607044760,-420.0,0.00022191,2]
[363168349,1748607044770,-420.0,0.00022191,2]
[363168352,1748607044780,-420.0,0.00022191,2]
[363168354,1748607044790,-420.0,0.00022191,2]
[363168356,1748607044800,-420.0,0.00022191,2]
[363168358,1748607044810,-642.81,0.00022191,2]
[363168359,1748607044819,-420.0,0.00022191,2]
[363168361,1748607044830,-420.0,0.00022191,2]
[363168364,1748607044839,-688.21,0.00022191,2]
[363168366,1748607044849,-752.7,0.00022191,2]
[363168368,1748607044859,-468.61,0.00022191,2]
[363168370,1748607044868,-420.0,0.00022191,2]
[363168372,1748607044877,-420.0,0.00022191,2]
[363168374,1748607044887,-420.0,0.00022191,2]
[363168376,1748607044896,-420.0,0.00022191,2]
[363168378,1748607044911,-681.76,0.00022191,2]
[363168380,1748607044919,-467.99,0.00022191,2]
[363168382,1748607044927,-420.0,0.00022191,2]
[363168384,1748607044936,-420.0,0.00022191,2]
[363168386,1748607044945,-570.81,0.00022191,2]
[363168388,1748607044954,-420.0,0.00022191,2]
[363168390,1748607044965,-848.07,0.00022191,2]
[363168392,1748607044976,-446.78455748,0.00022191,2]
[363168394,1748607044989,-420.0,0.00022191,2]
[363168396,1748607044998,-492.25,0.00022191,2]
[363168398,1748607045008,-420.0,0.00022191,2]
[363168400,1748607045018,-420.0,0.00022191,2]
[363168402,1748607045028,-554.15,0.00022191,2]
[363168404,1748607045037,-754.18,0.00022191,2]
[363168406,1748607045046,-420.0,0.00022191,2]
[363168408,1748607045056,-420.0,0.00022191,2]
[363168410,1748607045065,-420.0,0.00022191,2]
[363168412,1748607045074,-420.0,0.00022191,2]
[363168414,1748607045084,-420.0,0.00022191,2]
[363168416,1748607045093,-420.0,0.00022191,2]
[363168418,1748607045103,-420.0,0.00022191,2]
[363168420,1748607045112,-420.0,0.00022191,2]
[363168422,1748607045122,-420.0,0.00022191,2]
[363168424,1748607045132,-488.67,0.00022191,2]
[363168426,1748607045142,-550.32,0.00022191,2]
[363168428,1748607045151,-420.0,0.00022191,2]
[363168430,1748607045164,-475.66,0.00022191,2]
[363168432,1748607045174,-1204.07,0.00022191,2]
[363168434,1748607045183,-420.0,0.00022191,2]
[363168435,1748607045192,-420.0,0.00022191,2]
[363168436,1748607045201,-420.0,0.00022191,2]
[363168437,1748607045212,-420.0,0.00022191,2]
[363168438,1748607045221,-983.71,0.00022191,2]
[363168439,1748607045231,-665.55,0.00022191,2]
[363168440,1748607045240,-420.0,0.00022191,2]
[363168441,1748607045250,-420.0,0.00022191,2]
[363168442,1748607045259,-420.0,0.00022191,2]
[363168443,1748607045269,-420.0,0.00022191,2]
[363168444,1748607045279,-430.7,0.00022191,2]
[363168445,1748607045288,-420.0,0.00022191,2]
[363168446,1748607045298,-420.0,0.00022191,2]
[363168447,1748607045308,-420.0,0.00022191,2]
[363168449,1748607045317,-420.0,0.00022191,2]
[363168451,1748607045327,-420.0,0.00022191,2]
[363168459,1748607045395,-420.0,0.00022191,2]
[363168461,1748607045406,-437.84,0.00022191,2]
[363168463,1748607045418,-594.66,0.00022191,2]
[363168465,1748607045427,-250.0,0.00022191,2]
[363168467,1748607045437,-878.74,0.00022191,2]
[363168471,1748607045459,-815.54,0.00022191,2]
[363168473,1748607045469,-420.0,0.00022191,2]
[363168475,1748607045478,-420.0,0.00022191,2]
[363168477,1748607045487,-420.0,0.00022191,2]
[363168479,1748607045495,-420.0,0.00022191,2]
[363168481,1748607045505,-420.0,0.00022191,2]
[363168483,1748607045514,-420.0,0.00022191,2]
[363168485,1748607045523,-420.0,0.00022191,2]
[363168487,1748607045533,-462.0,0.00022191,2]
[363168488,1748607045542,-420.0,0.00022191,2]
[363168490,1748607045551,-904.21,0.00022191,2]
[363168492,1748607045560,-420.0,0.00022191,2]
[363168494,1748607045569,-420.0,0.00022191,2]
[363168496,1748607045579,-420.0,0.00022191,2]
[363168498,1748607045588,-420.0,0.00022191,2]
[363168500,1748607045597,-476.26,0.00022191,2]
[363168502,1748607045607,-420.0,0.00022191,2]
[363168505,1748607045616,-427.79,0.00022191,2]
[363168507,1748607045625,-420.0,0.00022191,2]
[363168509,1748607045634,-460.54,0.00022191,2]
[363168511,1748607045644,-420.0,0.00022191,2]
[363168513,1748607045662,-420.0,0.00022191,2]
[363168515,1748607045671,-420.0,0.00022191,2]
[363168517,1748607045681,-420.0,0.00022191,2]
[363168519,1748607045691,-420.0,0.00022191,2]
[363168521,1748607045700,-420.0,0.00022191,2]
[363168523,1748607045710,-420.0,0.00022191,2]
[363168526,1748607045719,-844.76,0.00022191,2]
[363168529,1748607045729,-268.13850509,0.00022191,2]
[363168531,1748607045738,-1173.07,0.00022191,2]
[363168533,1748607045748,-420.0,0.00022191,2]
[363168535,1748607045758,-420.0,0.00022191,2]
[363168537,1748607045768,-795.92,0.00022191,2]
[363168539,1748607045778,-792.64,0.00022191,2]
[363168541,1748607045788,-420.0,0.00022191,2]
[363168543,1748607045798,-600.66,0.00022191,2]
[363168545,1748607045808,-420.0,0.00022191,2]
[363168547,1748607045818,-783.75,0.00022191,2]
[363168549,1748607045830,-420.0,0.00022191,2]
[363168551,1748607045841,-489.86,0.00022191,2]
[363168553,1748607045852,-420.0,0.00022191,2]
[363168555,1748607045862,-431.78,0.00022191,2]
[363168557,1748607045872,-420.0,0.00022191,2]
[363168559,1748607045882,-420.0,0.00022191,2]
[363168561,1748607045893,-1096.19,0.00022191,2]
[363168563,1748607045904,-420.0,0.00022191,2]
[363168565,1748607045922,-420.0,0.00022191,2]
[363168567,1748607045935,-420.0,0.00022191,2]
[363168569,1748607045945,-505.65,0.00022191,2]
[363168571,1748607045955,-899.73,0.00022191,2]
[363168573,1748607045965,-420.0,0.00022191,2]
[363168575,1748607045975,-711.78,0.00022191,2]
[363168577,1748607045985,-420.0,0.00022191,2]
[363168579,1748607045995,-1058.99,0.00022191,2]
[363168581,1748607046006,-420.0,0.00022191,2]
[363168583,1748607046017,-420.0,0.00022191,2]
[363168585,1748607046026,-881.85,0.00022191,2]
[363168587,1748607046036,-420.0,0.00022191,2]
[363168589,1748607046045,-420.0,0.00022191,2]
[363168591,1748607046056,-420.0,0.00022191,2]
[363168593,1748607046066,-420.0,0.00022191,2]
[363168595,1748607046076,-293.29557796,0.00022191,2]
[363168597,1748607046086,-501.47,0.00022191,2]
[363168599,1748607046096,-420.0,0.00022191,2]
[363168601,1748607046106,-897.81,0.00022191,2]
[363168603,1748607046116,-424.07,0.00022191,2]
[363168605,1748607046125,-420.0,0.00022191,2]
[363168607,1748607046134,-420.0,0.00022191,2]
[363168609,1748607046144,-475.28,0.00022191,2]
[363168611,1748607046154,-543.28,0.00022191,2]
[363168614,1748607046169,-840.36,0.00022191,2]
[363168615,1748607046179,-900.0,0.00022191,2]
[363168618,1748607046188,-420.0,0.00022191,2]
[363168620,1748607046198,-420.0,0.00022191,2]
[363168622,1748607046208,-420.0,0.00022191,2]
[363168623,1748607046217,-420.0,0.00022191,2]
[363168626,1748607046227,-420.0,0.00022191,2]
[363168627,1748607046236,-1281.34,0.00022191,2]
[363168629,1748607046245,-420.0,0.00022191,2]
[363168632,1748607046255,-420.0,0.00022191,2]
[363168634,1748607046264,-420.0,0.00022191,2]